bitfinex/quotes_BTCUSD_20250422
["timestamp","ask_amount","ask_price","bid_price","bid_amount"]
[1745282300098,0.01147473,87148.0,87138.0,0.11375594]
[1745282300314,0.03148523,87147.0,87142.0,0.22950994]
[1745282300525,0.03148523,87147.0,87143.0,0.03432659]
[1745282300734,0.0153186,87149.0,87143.0,0.03432659]
[1745282300941,0.03148523,87146.0,87143.0,0.03432659]
[1745282301168,0.2203789,87155.0,87143.0,0.03432659]
[1745282301379,0.01147407,87153.0,87143.0,0.03432659]
[1745282301596,0.05345425,87154.0,87144.0,0.31546358]
[1745282301803,0.00045737,87155.0,87146.0,0.22949818]
[1745282302011,0.05345438,87153.0,87144.0,0.0859584]
[1745282302214,0.01147407,87153.0,87144.0,0.31546333]
[1745282302421,0.003,87148.0,87144.0,0.31546333]
[1745282302636,0.003,87148.0,87145.0,0.09340477]
[1745282303048,0.00045737,87155.0,87146.0,0.23179466]
[1745282303296,0.002,87147.0,87146.0,0.00229475]
[1745282303532,0.003,87153.0,87146.0,0.23179459]
[1745282303790,0.003,87148.0,87146.0,0.2317939]
[1745282304030,0.007,87148.0,87147.0,0.1749541]
[1745282304292,0.004,87148.0,87147.0,0.1772487]
[1745282304507,0.004,87148.0,87147.0,0.19178955]
[1745282305348,0.00345737,87155.0,87154.0,0.2440197]
[1745282305558,0.00345737,87155.0,87154.0,0.35777564]
[1745282305768,0.00345737,87155.0,87154.0,0.47081504]
[1745282306165,0.00045737,87155.0,87154.0,0.47081504]
[1745282307265,0.00145737,87155.0,87154.0,0.47081504]
[1745282308385,0.00045737,87155.0,87154.0,0.47081504]
[1745282308929,0.00045737,87155.0,87154.0,0.81081504]
[1745282310545,0.00045737,87155.0,87154.0,0.81181504]
[1745282311036,0.00045737,87155.0,87154.0,0.81281504]
[1745282311396,0.00045737,87155.0,87154.0,1.23181504]
[1745282317457,0.00045737,87155.0,87154.0,1.25204893]
[1745282320576,0.00045737,87155.0,87154.0,1.23181504]
[1745282325167,0.00045737,87155.0,87154.0,1.25207104]
[1745282329001,0.00045737,87155.0,87154.0,0.83307104]
[1745282330530,0.000845,87158.0,87157.0,0.5840118]
[1745282330773,0.00098215,87158.0,87157.0,0.74538037]
[1745282331841,0.00098215,87158.0,87157.0,0.74539381]
[1745282332100,0.00098215,87158.0,87157.0,0.74639381]
[1745282333737,0.00098215,87158.0,87157.0,0.74739381]
[1745282334587,0.00098215,87158.0,87157.0,0.74639381]
[1745282334931,0.00098215,87158.0,87157.0,0.74739381]
[1745282337300,0.00098215,87158.0,87157.0,0.72712437]
[1745282339808,0.00098215,87158.0,87157.0,0.72812437]
[1745282340215,0.00098215,87158.0,87157.0,0.84882437]
[1745282340419,0.00098215,87158.0,87157.0,0.74842581]
[1745282340840,0.00098215,87158.0,87157.0,1.16742581]
[1745282343417,1e-08,87158.0,87157.0,1.16642581]
[1745282343855,0.000847,87176.0,87175.0,0.56942357]
[1745282344077,0.000847,87176.0,87175.0,0.7180218]
[1745282344310,0.000847,87176.0,87175.0,0.7190218]
[1745282347110,0.000847,87176.0,87175.0,0.72753789]
[1745282347348,0.000847,87176.0,87175.0,0.7190218]
[1745282347743,0.000847,87176.0,87175.0,0.78021996]
[1745282349627,4.7e-05,87176.0,87175.0,0.78021996]
[1745282349858,0.000844,87184.0,87183.0,0.58394337]
[1745282350067,0.000844,87184.0,87183.0,0.69769931]
[1745282350286,0.000844,87184.0,87183.0,0.71800075]
[1745282350481,0.000844,87184.0,87183.0,1.25104015]
[1745282350692,0.000844,87184.0,87183.0,1.2617488]
[1745282351556,0.001844,87184.0,87183.0,1.25104015]
[1745282351766,0.001844,87184.0,87183.0,1.26462833]
[1745282352189,0.001844,87184.0,87183.0,1.26562833]
[1745282352398,0.001844,87184.0,87183.0,1.26462833]
[1745282353951,0.001844,87184.0,87183.0,0.84562833]
[1745282354455,0.000844,87184.0,87183.0,0.84562833]
[1745282354696,0.001844,87184.0,87183.0,0.84562833]
[1745282355605,0.001844,87184.0,87183.0,0.84662833]
[1745282356295,7.64e-05,87193.0,87192.0,0.58391969]
[1745282356521,0.00021353,87193.0,87192.0,1.14403226]
[1745282357150,0.00021353,87193.0,87192.0,1.1643337]
[1745282357619,1.353e-05,87193.0,87192.0,1.1643337]
[1745282357958,0.00101353,87193.0,87192.0,1.1643337]
[1745282358168,0.00131353,87193.0,87192.0,1.1643337]
[1745282358377,0.00101353,87193.0,87192.0,1.1643337]
[1745282360167,1.353e-05,87193.0,87192.0,1.1643337]
[1745282360373,1.353e-05,87193.0,87192.0,1.1653337]
[1745282360606,0.0008436,87211.0,87192.0,1.1653337]
[1745282360607,0.0008436,87211.0,87210.0,0.22933149]
[1745282360800,0.0008436,87211.0,87210.0,0.20084503]
[1745282361236,0.0008436,87211.0,87210.0,0.22114647]
[1745282361871,0.0028436,87211.0,87210.0,0.14859823]
[1745282362083,0.0038436,87211.0,87210.0,0.14859823]
[1745282362301,0.23317246,87211.0,87210.0,0.03484229]
[1745282362506,0.0038436,87211.0,87210.0,0.02030144]
[1745282362747,0.04626666,87211.0,87210.0,0.02030144]
[1745282362965,0.0038436,87211.0,87210.0,0.03484229]
[1745282363165,0.04626666,87211.0,87210.0,0.03484229]
[1745282363373,0.0038436,87211.0,87210.0,0.03484229]
[1745282363589,0.04626666,87211.0,87210.0,0.03484229]
[1745282363819,0.0038436,87211.0,87210.0,0.03484229]
[1745282364000,0.04626666,87211.0,87210.0,0.03484229]
[1745282364276,0.0038436,87211.0,87210.0,0.03484229]
[1745282364488,0.04637565,87211.0,87210.0,0.03484229]
[1745282364680,0.0038436,87211.0,87210.0,0.03484229]
[1745282364805,0.04637565,87211.0,87210.0,0.03484229]
[1745282365463,0.09177565,87211.0,87210.0,0.02030144]
[1745282366092,0.08977565,87211.0,87210.0,0.02030144]
[1745282366549,0.09077565,87211.0,87210.0,0.02030144]
[1745282367167,0.09077565,87211.0,87210.0,0.03484229]
[1745282367168,0.08877565,87211.0,87210.0,0.03484229]
[1745282367379,0.09177565,87211.0,87210.0,0.03484229]
[1745282367589,0.09477565,87211.0,87210.0,0.03484229]
[1745282367977,0.09177565,87211.0,87210.0,0.03484229]
[1745282368191,0.04637565,87211.0,87210.0,0.14859823]
[1745282368400,0.04637565,87211.0,87210.0,0.16345805]
[1745282368401,0.03697565,87211.0,87210.0,0.16345805]
[1745282368772,0.0008442,87216.0,87211.0,0.01454085]
[1745282368973,0.0008442,87216.0,87213.0,0.01454085]
[1745282369172,0.04160598,87215.0,87214.0,0.14859823]
[1745282369394,0.0008442,87216.0,87214.0,0.14859823]
[1745282369546,0.0008442,87216.0,87215.0,0.0163458]
[1745282369755,0.0008442,87216.0,87215.0,0.13010174]
[1745282369963,0.0008442,87216.0,87215.0,0.15040318]
[1745282370203,0.0028442,87216.0,87215.0,0.15040318]
[1745282370606,0.0058442,87216.0,87215.0,0.15040318]
[1745282370811,0.0078442,87216.0,87215.0,0.15140318]
[1745282371084,0.0048442,87216.0,87215.0,0.15140318]
[1745282371437,0.0058442,87216.0,87215.0,0.15140318]
[1745282371653,0.0038442,87216.0,87215.0,0.16594403]
[1745282372851,0.0018442,87216.0,87215.0,0.16594403]
[1745282373331,0.0028442,87216.0,87215.0,0.16594403]
[1745282378353,0.0028442,87216.0,87215.0,0.16823676]
[1745282378756,0.0028442,87216.0,87215.0,0.16594403]
[1745282378966,0.0028442,87216.0,87215.0,0.16823661]
[1745282379802,0.0028442,87216.0,87215.0,0.50823661]
[1745282380150,0.0028442,87216.0,87215.0,0.50594403]
[1745282380360,0.0018442,87216.0,87215.0,0.50594403]
[1745282380685,0.0008442,87216.0,87215.0,0.92494403]
[1745282381312,0.0008442,87216.0,87215.0,0.92694403]
[1745282381520,0.0006884,87219.0,87218.0,0.58485131]
[1745282381725,0.0006884,87219.0,87218.0,0.8123593]
[1745282381932,0.0006884,87219.0,87218.0,0.83266074]
[1745282382135,0.0006884,87219.0,87218.0,0.83366074]
[1745282382353,0.0006884,87219.0,87218.0,1.31016574]
[1745282382572,0.0006884,87219.0,87218.0,1.32670141]
[1745282382812,0.000844,87228.0,87227.0,0.63482765]
[1745282383030,0.0009811,87228.0,87227.0,0.74858359]
[1745282383699,0.0009811,87228.0,87227.0,0.71801997]
[1745282384126,0.0009811,87228.0,87227.0,0.71901997]
[1745282385009,0.0009811,87228.0,87227.0,0.71801997]
[1745282385236,0.0009811,87228.0,87227.0,0.76916903]
[1745282385470,0.0009811,87228.0,87227.0,0.75073265]
[1745282387798,0.0009811,87228.0,87227.0,1.16973265]
[1745282390061,0.0009811,87228.0,87227.0,0.166905]
[1745282390311,0.0009811,87228.0,87227.0,0.11575594]
[1745282390563,0.04261704,87228.0,87227.0,0.11575594]
[1745282390785,0.0009811,87228.0,87227.0,0.45804856]
[1745282391009,0.0009811,87228.0,87227.0,0.45575594]
[1745282391228,0.0009811,87228.0,87227.0,0.46929679]
[1745282391437,0.0019811,87228.0,87227.0,0.53062914]
[1745282391644,0.0029811,87228.0,87227.0,0.53062914]
[1745282391911,0.0029811,87228.0,87227.0,0.54516999]
[1745282394997,0.0029811,87228.0,87227.0,0.56457247]
[1745282397620,0.0029811,87228.0,87227.0,0.59893826]
[1745282399678,0.0029811,87228.0,87227.0,0.54516999]
[1745282400121,0.0029811,87228.0,87227.0,0.96416999]
[1745282400772,0.0019811,87228.0,87227.0,0.96416999]
[1745282400977,0.0009811,87228.0,87227.0,0.96416999]
[1745282403230,0.0009811,87228.0,87227.0,0.98360733]
[1745282406755,0.0009811,87228.0,87227.0,0.98460733]
[1745282407786,0.0009811,87228.0,87227.0,0.99336715]
[1745282408746,0.0009811,87228.0,87227.0,0.97392981]
[1745282409862,0.0008436,87237.0,87236.0,0.58480399]
[1745282410077,0.0008436,87237.0,87236.0,1.22193364]
[1745282410934,0.0008436,87237.0,87236.0,1.24140606]
[1745282411371,0.0008436,87237.0,87236.0,1.25452137]
[1745282412038,0.0008436,87243.0,87242.0,0.58478823]
[1745282412273,0.0008436,87243.0,87242.0,0.69854417]
[1745282412498,0.0008436,87243.0,87242.0,0.81229622]
[1745282412663,0.0008436,87243.0,87242.0,0.85969622]
[1745282413024,0.0008436,87243.0,87242.0,0.90589622]
[1745282413753,0.000843,87246.0,87245.0,0.58478034]
[1745282413981,0.000843,87246.0,87245.0,1.11753628]
[1745282414188,0.000843,87246.0,87245.0,1.19440948]
[1745282414665,0.0008438,87251.0,87250.0,0.58476721]
[1745282414867,0.0008438,87251.0,87250.0,0.71796488]
[1745282416109,0.0008438,87251.0,87250.0,0.69852315]
[1745282416322,0.0008438,87251.0,87250.0,0.80289686]
[1745282416871,0.0018438,87251.0,87250.0,0.80289686]
[1745282417114,0.0018438,87251.0,87250.0,1.22189686]
[1745282420041,0.0018438,87251.0,87250.0,1.28044042]
[1745282421175,1.0,87251.0,87250.0,1.28044042]
[1745282421386,1.04206848,87251.0,87250.0,1.28044042]
[1745282422516,0.5054994,87251.0,87250.0,1.28044042]
[1745282423012,0.21903306,87251.0,87250.0,1.17606671]
[1745282423254,0.17018108,87251.0,87250.0,1.17606671]
[1745282423488,0.1281126,87251.0,87250.0,1.17606671]
[1745282423733,0.09291075,87251.0,87250.0,1.17606671]
[1745282424626,0.08872006,87251.0,87250.0,1.17606671]
[1745282425482,0.08872006,87251.0,87250.0,1.29676671]
[1745282425939,0.000843,87264.0,87262.0,0.58473568]
[1745282426151,0.000843,87264.0,87262.0,1.04530138]
[1745282426152,0.00130071,87263.0,87262.0,1.04530138]
[1745282426397,0.00130071,87263.0,87262.0,1.16600138]
[1745282426858,0.00130071,87263.0,87262.0,1.19857156]
[1745282427285,0.00230071,87263.0,87262.0,1.19857156]
[1745282427707,0.00130071,87263.0,87262.0,1.19857156]
[1745282428126,0.000843,87264.0,87263.0,0.52624085]
[1745282428348,0.00097999,87264.0,87263.0,0.68569679]
[1745282430612,0.0130524,87275.0,87268.0,0.58471993]
[1745282430821,0.00070601,87272.0,87271.0,0.58471205]
[1745282431053,0.00070601,87272.0,87271.0,0.71499492]
[1745282431278,0.00070601,87272.0,87271.0,0.69846799]
[1745282431495,0.00070601,87272.0,87271.0,0.78403588]
[1745282431708,0.00070601,87272.0,87271.0,1.01320708]
[1745282431925,0.00070601,87272.0,87271.0,1.02774793]
[1745282432150,0.00070601,87272.0,87271.0,0.68774793]
[1745282432398,0.00170601,87272.0,87271.0,0.68774793]
[1745282432655,0.00170601,87272.0,87271.0,1.02774793]
[1745282432876,0.00170601,87272.0,87271.0,1.09352184]
[1745282433079,0.00170601,87272.0,87271.0,1.02774793]
[1745282434019,0.00170601,87272.0,87271.0,0.78403588]
[1745282434463,0.00170601,87272.0,87271.0,0.79857673]
[1745282434679,0.00170601,87272.0,87271.0,0.78403588]
[1745282435110,0.00170601,87272.0,87271.0,0.79857673]
[1745282435345,0.00070601,87272.0,87271.0,0.79857673]
[1745282435565,0.00370601,87272.0,87271.0,0.79857673]
[1745282436941,0.00370601,87272.0,87271.0,1.02774793]
[1745282437496,0.00370601,87272.0,87271.0,0.69746799]
[1745282443939,0.00370601,87272.0,87271.0,0.75114294]
[1745282445529,0.05380601,87272.0,87271.0,0.52197174]
[1745282445831,0.10200001,87272.0,87271.0,0.52197174]
[1745282446636,0.10200001,87272.0,87271.0,0.46829679]
[1745282446637,0.10000001,87272.0,87271.0,0.46829679]
[1745282446858,0.10100001,87272.0,87271.0,0.46829679]
[1745282447331,0.05390001,87272.0,87271.0,0.69746799]
[1745282447789,0.00570601,87272.0,87271.0,0.69746799]
[1745282448506,0.00370601,87272.0,87271.0,0.69746799]
[1745282448723,0.00470601,87272.0,87271.0,0.69746799]
[1745282448952,0.00270601,87272.0,87271.0,0.69746799]
[1745282449385,0.00270601,87272.0,87271.0,1.02774793]
[1745282450433,0.00370601,87272.0,87271.0,1.02774793]
[1745282452645,0.00370601,87272.0,87271.0,1.02874793]
[1745282453516,0.00270601,87272.0,87271.0,1.02874793]
[1745282453737,0.00170601,87272.0,87271.0,1.02874793]
[1745282453965,0.00270601,87272.0,87271.0,1.02874793]
[1745282454404,0.00170601,87272.0,87271.0,1.02874793]
[1745282454863,0.00270601,87272.0,87271.0,1.02874793]
[1745282455077,0.00270601,87272.0,87271.0,1.07844793]
[1745282455229,0.00170601,87272.0,87271.0,1.07844793]
[1745282455467,0.0008458,87281.0,87271.0,1.07844793]
[1745282455468,0.0004215,87307.0,87298.0,0.24364117]
[1745282455700,0.0004215,87307.0,87298.0,0.69739711]
[1745282455701,0.00098117,87299.0,87298.0,0.69739711]
[1745282455868,0.00098117,87299.0,87298.0,1.02767705]
[1745282456675,0.00298117,87299.0,87298.0,1.02767705]
[1745282457110,0.00298117,87299.0,87298.0,1.02867705]
[1745282457111,0.00198117,87299.0,87298.0,1.02867705]
[1745282457311,0.00098117,87299.0,87298.0,1.02867705]
[1745282457840,0.01145094,87329.0,87298.0,1.02867705]
[1745282457841,0.0489436,87339.0,87328.0,0.01145108]
[1745282458025,0.06039323,87339.0,87330.0,0.35454085]
[1745282458250,0.00098092,87331.0,87330.0,0.5176457]
[1745282459828,0.00398092,87331.0,87330.0,0.5176457]
[1745282460241,0.00598092,87331.0,87330.0,0.5176457]
[1745282461068,0.00398092,87331.0,87330.0,0.5176457]
[1745282461495,0.00498092,87331.0,87330.0,0.5176457]
[1745282461713,0.00198092,87331.0,87330.0,0.5176457]
[1745282462412,0.00298092,87331.0,87330.0,0.5176457]
[1745282462609,0.00198092,87331.0,87330.0,0.5176457]
[1745282462772,0.00098092,87331.0,87330.0,0.5176457]
[1745282463070,0.00198092,87331.0,87330.0,0.5176457]
[1745282463251,0.00098092,87331.0,87330.0,0.86761105]
[1745282464847,0.00098092,87331.0,87330.0,1.09662742]
[1745282466544,0.00098092,87331.0,87330.0,1.09762742]
[1745282466755,0.0004218,87352.0,87330.0,1.09762742]
[1745282466756,0.0004218,87352.0,87351.0,0.58350216]
[1745282466981,0.0004218,87352.0,87351.0,0.81500173]
[1745282467216,0.09807809,87352.0,87351.0,0.13018094]
[1745282467453,0.14682134,87352.0,87351.0,0.14986635]
[1745282467680,0.14682134,87352.0,87351.0,0.13344135]
[1745282467893,0.01145068,87331.0,87328.0,0.33027994]
[1745282468124,0.01145068,87331.0,87327.0,0.06998449]
[1745282468125,0.0455,87328.0,87327.0,0.06998449]
[1745282468380,0.0455,87328.0,87327.0,0.52374043]
[1745282468609,0.0455,87328.0,87327.0,0.18374043]
[1745282468842,0.0455,87328.0,87327.0,0.22730901]
[1745282469076,0.09425564,87328.0,87327.0,0.22730901]
[1745282469766,0.0455,87328.0,87327.0,0.22730901]
[1745282469971,0.0475,87328.0,87327.0,0.22730901]
[1745282470184,0.0475,87328.0,87327.0,0.58184986]
[1745282470636,0.0475,87328.0,87327.0,0.51186537]
[1745282471112,0.0495,87328.0,87327.0,0.17186537]
[1745282471323,0.0495,87328.0,87327.0,0.11375594]
[1745282471548,0.0495,87328.0,87322.0,0.08613476]
[1745282471549,0.22903473,87323.0,87322.0,0.08613476]
[1745282471780,0.22903473,87323.0,87322.0,0.1998907]
[1745282472239,0.04875564,87323.0,87322.0,0.1998907]
[1745282472456,0.0475,87328.0,87325.0,0.01454085]
[1745282472682,0.04875564,87327.0,87326.0,0.12829679]
[1745282473626,0.006,87328.0,87327.0,0.01454085]
[1745282473839,0.004,87328.0,87327.0,0.12829679]
[1745282474057,0.004,87328.0,87327.0,0.16272157]
[1745282474058,0.05275564,87328.0,87327.0,0.16272157]
[1745282474256,0.04875564,87328.0,87327.0,0.16272157]
[1745282474488,0.24046916,87330.0,87328.0,0.01454085]
[1745282474710,0.24046993,87329.0,87328.0,0.11375594]
[1745282474952,0.24046993,87329.0,87288.0,0.001]
[1745282474953,0.2290767,87307.0,87288.0,0.001]
[1745282475178,0.01145357,87309.0,87307.0,0.34]
[1745282475400,0.24052604,87309.0,87308.0,0.11375594]
[1745282475641,0.24052604,87309.0,87308.0,0.45375594]
[1745282475873,0.28702604,87309.0,87308.0,0.45375594]
[1745282476111,0.28702604,87309.0,87306.0,0.00013692]
[1745282476112,0.001,87307.0,87306.0,0.00013692]
[1745282476330,0.002,87307.0,87306.0,0.00013692]
[1745282476539,0.001,87307.0,87306.0,0.00013692]
[1745282477415,0.002,87307.0,87306.0,0.00013692]
[1745282478721,0.004,87307.0,87306.0,0.00013692]
[1745282480697,0.2330767,87307.0,87306.0,0.00013692]
[1745282480906,0.2330767,87307.0,87306.0,0.03675017]
[1745282481825,0.2330767,87307.0,87306.0,0.00013692]
[1745282483430,0.004,87307.0,87306.0,0.46843371]
[1745282483860,0.004,87307.0,87306.0,0.56024369]
[1745282484499,0.002,87307.0,87306.0,0.56024369]
[1745282484916,0.003,87307.0,87306.0,0.56024369]
[1745282485128,0.003,87307.0,87306.0,0.6260176]
[1745282485340,0.01145121,87327.0,87324.0,0.01454085]
[1745282485557,0.01145213,87320.0,87316.0,0.01454085]
[1745282485766,0.24049473,87320.0,87317.0,0.11375594]
[1745282485983,0.22904784,87318.0,87317.0,0.11375594]
[1745282486661,0.27764015,87318.0,87317.0,0.11375594]
[1745282487258,0.28064015,87318.0,87317.0,0.11375594]
[1745282487403,0.28064015,87318.0,87317.0,0.12513153]
[1745282487670,0.28064015,87318.0,87308.0,0.67027994]
[1745282487671,0.22907145,87309.0,87308.0,0.67027994]
[1745282487893,0.2290767,87307.0,87306.0,0.00029292]
[1745282488305,0.27766901,87307.0,87306.0,0.00029292]
[1745282490204,0.27966901,87307.0,87306.0,0.00029292]
[1745282490670,0.28166901,87307.0,87306.0,0.00029292]
[1745282490915,0.28166901,87307.0,87306.0,0.00013692]
[1745282490916,0.28266901,87307.0,87306.0,0.00013692]
[1745282491164,0.28166901,87307.0,87306.0,0.00013692]
[1745282491405,0.28266901,87307.0,87306.0,0.00013692]
[1745282493404,0.28066901,87307.0,87306.0,0.00013692]
[1745282493615,0.28366901,87307.0,87306.0,0.00013692]
[1745282494036,0.28066901,87307.0,87306.0,0.00013692]
[1745282494235,0.28366901,87307.0,87306.0,0.00013692]
[1745282494451,0.28166901,87307.0,87306.0,0.00013692]
[1745282494651,0.789469,87307.0,87306.0,1e-08]
[1745282494864,0.01145606,87290.0,87287.0,0.01652547]
[1745282495065,0.27472656,87288.0,87287.0,0.01666244]
[1745282495744,0.32307602,87288.0,87287.0,0.01666244]
[1745282496344,0.32307602,87288.0,87287.0,0.01766244]
[1745282496760,0.32307602,87288.0,87287.0,0.01666244]
[1745282497083,0.32307602,87288.0,87287.0,0.01766244]
[1745282500441,0.04834946,87288.0,87287.0,0.00129297]
[1745282500656,0.229124,87289.0,87287.0,0.12958976]
[1745282500864,0.229124,87289.0,87288.0,0.11375594]
[1745282502063,0.230124,87289.0,87288.0,0.11375594]
[1745282502225,0.230124,87289.0,87288.0,0.11391194]
[1745282502660,0.230124,87289.0,87288.0,0.000156]
[1745282503293,0.231124,87289.0,87288.0,0.000156]
[1745282503736,0.232124,87289.0,87288.0,0.000156]
[1745282503963,0.232124,87289.0,87281.0,0.0008446]
[1745282503964,0.232124,87289.0,87281.0,1e-08]
[1745282503965,0.22914232,87282.0,87281.0,1e-08]
[1745282504207,0.38939826,87282.0,87281.0,1e-08]
[1745282504433,0.4673562,87282.0,87281.0,1e-08]
[1745282505118,0.4683562,87282.0,87281.0,1e-08]
[1745282505402,0.4673562,87282.0,87281.0,1e-08]
[1745282505628,0.4703562,87282.0,87281.0,1e-08]
[1745282505846,0.4461225,87282.0,87281.0,1e-08]
[1745282506057,0.4491225,87282.0,87281.0,1e-08]
[1745282506291,0.4703562,87282.0,87281.0,1e-08]
[1745282506728,0.4733562,87282.0,87281.0,0.00100001]
[1745282506939,0.4521225,87282.0,87281.0,0.00100001]
[1745282507162,0.22916857,87272.0,87271.0,0.0008444]
[1745282508252,0.23016857,87272.0,87271.0,0.0008444]
[1745282509164,0.23216857,87272.0,87271.0,0.0018444]
[1745282509377,0.23216857,87272.0,87271.0,0.03111184]
[1745282510615,0.23216857,87272.0,87271.0,0.0018444]
[1745282513233,0.003,87272.0,87271.0,0.13014119]
[1745282513857,0.003,87272.0,87271.0,0.47014119]
[1745282514065,0.002,87272.0,87271.0,0.47014119]
[1745282514505,0.003,87272.0,87271.0,0.47014119]
[1745282514716,0.003,87272.0,87271.0,0.51684119]
[1745282515400,0.001,87272.0,87271.0,0.51584119]
[1745282515616,0.01145672,87285.0,87283.0,0.01454085]
[1745282515820,0.01145672,87285.0,87284.0,0.12829679]
[1745282516046,0.01145672,87285.0,87284.0,0.14487201]
[1745282516249,0.01145672,87285.0,87284.0,0.11375594]
[1745282517141,0.01245672,87285.0,87284.0,0.11375594]
[1745282518541,0.001,87285.0,87284.0,0.46829679]
[1745282520125,0.23013444,87285.0,87284.0,0.46829679]
[1745282521143,0.001,87285.0,87284.0,0.46829679]
[1745282522049,0.23013444,87285.0,87284.0,0.46829679]
[1745282522286,0.27832897,87285.0,87284.0,0.46829679]
[1745282522517,0.27832897,87285.0,87284.0,0.51689679]
[1745282522518,0.04919453,87285.0,87284.0,0.51689679]
[1745282522753,0.04919453,87285.0,87284.0,0.56199679]
[1745282522987,0.23588,87346.0,87319.0,0.01454085]
[1745282522988,0.01145121,87327.0,87319.0,0.01454085]
[1745282523221,0.0114516,87324.0,87321.0,0.34]
[1745282523445,0.04016211,87326.0,87323.0,0.34]
[1745282523673,0.01145134,87326.0,87324.0,0.0491779]
[1745282523892,0.04016211,87325.0,87324.0,0.0491779]
[1745282524422,0.04016211,87325.0,87324.0,0.51747469]
[1745282524632,0.01145003,87336.0,87333.0,0.01145042]
[1745282524838,0.22901654,87330.0,87326.0,0.01454085]
[1745282525039,0.01145094,87329.0,87327.0,0.13035195]
[1745282525537,0.04016211,87328.0,87327.0,0.1448928]
[1745282525785,0.26918435,87328.0,87327.0,0.1448928]
[1745282526881,0.27118435,87328.0,87327.0,0.1448928]
[1745282527970,0.27418435,87328.0,87327.0,0.1448928]
[1745282528175,0.27418435,87328.0,87327.0,0.11375594]
[1745282529045,0.27418435,87328.0,87319.0,0.0005776]
[1745282529046,0.2290426,87320.0,87319.0,0.0005776]
[1745282529455,0.26952001,87320.0,87319.0,0.0005776]
[1745282530203,0.26952001,87320.0,87319.0,0.46887439]
[1745282530204,0.27352001,87320.0,87319.0,0.46887439]
[1745282530392,0.27552001,87320.0,87319.0,0.46887439]
[1745282531192,0.27352001,87320.0,87319.0,0.46887439]
[1745282531455,0.26952001,87320.0,87319.0,0.46887439]
[1745282531661,0.27052001,87320.0,87319.0,0.46887439]
[1745282531882,0.27152001,87320.0,87319.0,0.46887439]
[1745282532084,0.27152001,87320.0,87319.0,0.51805242]
[1745282532958,0.27152001,87320.0,87319.0,0.46887439]
[1745282534215,0.27152001,87320.0,87319.0,0.11433354]
[1745282534737,0.26952001,87320.0,87319.0,0.11433354]
[1745282535159,0.27052001,87320.0,87319.0,0.11533354]
[1745282535721,0.04147741,87320.0,87319.0,0.12987439]
[1745282535929,0.04147741,87320.0,87319.0,0.1451524]
[1745282536340,0.001,87320.0,87319.0,0.1451524]
[1745282536549,0.001,87320.0,87319.0,0.14744253]
[1745282537638,0.001,87320.0,87319.0,0.1451524]
[1745282538181,0.04147741,87320.0,87319.0,0.1451524]
[1745282539273,0.04147741,87320.0,87319.0,0.12987439]
[1745282541302,0.08757741,87320.0,87319.0,0.0015776]
[1745282542583,0.08957741,87320.0,87319.0,0.0015776]
[1745282543109,0.22911607,87292.0,87291.0,0.09180998]
[1745282543304,0.22911607,87292.0,87291.0,0.11375594]
[1745282543551,0.26962074,87292.0,87291.0,0.12513153]
[1745282544202,0.26962074,87292.0,87291.0,0.12613153]
[1745282544412,0.26975751,87292.0,87291.0,0.12613153]
[1745282545077,0.26975751,87292.0,87291.0,0.12513153]
[1745282546428,0.22913706,87284.0,87283.0,0.06964782]
[1745282546634,0.22913706,87284.0,87283.0,0.53794461]
[1745282547047,0.22913706,87284.0,87283.0,0.52340376]
[1745282547249,0.22913706,87284.0,87283.0,0.18340376]
[1745282547860,0.26964173,87284.0,87283.0,0.20274414]
[1745282549473,0.26964173,87284.0,87283.0,0.18440376]
[1745282552071,0.26964173,87284.0,87283.0,0.07064782]
[1745282552640,0.26964173,87284.0,87283.0,0.18440376]
[1745282552842,0.26964173,87284.0,87283.0,0.18340376]
[1745282554047,0.26964173,87284.0,87283.0,0.18440376]
[1745282554455,0.26964173,87284.0,87283.0,0.18340376]
[1745282554800,0.26964173,87284.0,87283.0,0.20174414]
[1745282557866,0.26964173,87284.0,87283.0,0.18340376]
[1745282560894,0.04050467,87284.0,87283.0,0.53794461]
[1745282561337,0.01145606,87290.0,87288.0,0.01454085]
[1745282561557,0.01145606,87290.0,87289.0,0.12829679]
[1745282561827,0.01159257,87292.0,87290.0,0.01454085]
[1745282562043,0.01159257,87292.0,87291.0,0.12829679]
[1745282564626,0.01159257,87292.0,87291.0,0.12929679]
[1745282565870,0.00013677,87292.0,87291.0,0.12929679]
[1745282566098,0.00013677,87292.0,87291.0,0.70070642]
[1745282566283,0.00013677,87292.0,87291.0,0.69841548]
[1745282566500,0.00013677,87292.0,87291.0,0.81088939]
[1745282566624,0.00013677,87292.0,87291.0,0.74611548]
[1745282571511,0.00013677,87292.0,87291.0,0.74511548]
[1745282572476,0.00013677,87292.0,87291.0,0.74611548]
[1745282573144,0.00013677,87292.0,87291.0,0.74711548]
[1745282577885,0.00013677,87292.0,87291.0,0.36041548]
[1745282578088,0.00013677,87292.0,87291.0,0.11675594]
[1745282578526,0.04039244,87292.0,87291.0,0.11675594]
[1745282579161,0.04039244,87292.0,87291.0,0.11575594]
[1745282579756,0.04039244,87292.0,87291.0,0.11475594]
[1745282580407,0.04039244,87292.0,87291.0,0.12623153]
[1745282580913,0.04139244,87292.0,87291.0,0.12623153]
[1745282581263,0.04139244,87292.0,87291.0,0.11475594]
[1745282582101,0.04139244,87292.0,87291.0,0.001]
[1745282599767,0.04139244,87292.0,87291.0,1e-08]
[1745282599768,0.55239242,87292.0,87291.0,1e-08]
[1745282601873,0.66514836,87292.0,87291.0,1e-08]
[1745282602272,0.66514836,87292.0,87264.0,0.19902001]
[1745282602273,0.22918695,87265.0,87264.0,0.19902001]
[1745282602498,0.26938832,87265.0,87264.0,0.31277595]
[1745282602790,0.26938832,87265.0,87264.0,0.32492538]
[1745282603054,0.22920271,87259.0,87258.0,0.34]
[1745282603258,0.22920271,87259.0,87256.0,0.09265438]
[1745282603259,0.22920271,87259.0,87256.0,0.0008444]
[1745282603758,0.22920797,87257.0,87256.0,0.0008444]
[1745282604122,0.27790797,87257.0,87256.0,0.0008444]
[1745282604327,0.31810934,87257.0,87256.0,0.0008444]
[1745282604969,0.31710934,87257.0,87256.0,0.0008444]
[1745282605777,0.31810934,87257.0,87256.0,0.0008444]
[1745282607569,0.26940934,87257.0,87256.0,0.0008444]
[1745282607766,0.04120137,87257.0,87256.0,0.46914119]
[1745282608217,0.001,87257.0,87256.0,0.46914119]
[1745282608800,0.04120137,87257.0,87256.0,0.46914119]
[1745282608993,0.001,87257.0,87256.0,0.46914119]
[1745282609208,0.04120137,87257.0,87256.0,0.46914119]
[1745282609413,0.001,87257.0,87256.0,0.46914119]
[1745282609638,0.04020137,87257.0,87256.0,0.46914119]
[1745282609940,4.556e-05,87259.0,87257.0,0.35454085]
[1745282610138,4.556e-05,87259.0,87258.0,0.12829679]
[1745282610287,4.556e-05,87259.0,87258.0,0.69750213]
[1745282610485,4.556e-05,87259.0,87258.0,0.46829679]
[1745282612291,0.00104556,87259.0,87258.0,0.46829679]